bitfinex/quotes_BTCUSD_20240627
["timestamp","ask_amount","ask_price","bid_price","bid_amount"]
[1719494843482,0.90919,61790.0,61789.0,0.26574393]
[1719494843691,1.232866,61790.0,61789.0,0.28542993]
[1719494846767,1.235866,61790.0,61789.0,0.28542993]
[1719494847918,1.235866,61790.0,61789.0,0.26574393]
[1719494848144,1.235866,61790.0,61789.0,0.28542993]
[1719494849304,1.235866,61790.0,61784.0,0.17987103]
[1719494849305,1.13296,61785.0,61784.0,0.18444047]
[1719494849506,1.13296,61785.0,61782.0,0.10098946]
[1719494849507,0.485569,61783.0,61782.0,0.26574393]
[1719494849747,1.232995,61783.0,61782.0,0.26574393]
[1719494850168,1.232995,61783.0,61782.0,0.08130346]
[1719494850169,2.35378498,61783.0,61782.0,0.08130346]
[1719494850386,2.78208498,61783.0,61782.0,0.08130346]
[1719494851001,2.78308498,61783.0,61782.0,0.08630346]
[1719494851205,2.78177098,61783.0,61782.0,0.08130346]
[1719494851887,2.79077098,61783.0,61782.0,0.08130346]
[1719494852469,2.79108498,61783.0,61782.0,0.08130346]
[1719494852630,2.79077098,61783.0,61782.0,0.08130346]
[1719494853043,2.79108498,61783.0,61782.0,0.08130346]
[1719494853264,2.78177098,61783.0,61782.0,0.08130346]
[1719494853687,2.79177098,61783.0,61782.0,0.08130346]
[1719494853888,2.80477098,61783.0,61782.0,0.08130346]
[1719494854085,1.651272,61783.0,61782.0,0.26574393]
[1719494854293,1.477295,61783.0,61782.0,0.26574393]
[1719494854736,1.477295,61783.0,61782.0,0.26666793]
[1719494854737,1.232995,61783.0,61782.0,0.26666793]
[1719494855298,1.255995,61783.0,61782.0,0.26659368]
[1719494855898,1.255995,61783.0,61782.0,0.08215321]
[1719494856306,1.255995,61783.0,61782.0,0.28627968]
[1719494856513,1.255995,61783.0,61782.0,0.26659368]
[1719494856864,1.246995,61783.0,61782.0,0.28627968]
[1719494857271,0.929282,61783.0,61782.0,0.28627968]
[1719494857485,0.929282,61783.0,61782.0,0.46615071]
[1719494858500,0.915282,61783.0,61782.0,0.46615071]
[1719494858699,0.928282,61783.0,61782.0,0.46615071]
[1719494859097,0.915282,61783.0,61782.0,0.46615071]
[1719494859426,1.700695,61783.0,61782.0,0.26659368]
[1719494859625,1.711695,61783.0,61782.0,0.26659368]
[1719494860828,1.484295,61783.0,61782.0,0.26659368]
[1719494861025,1.484295,61783.0,61782.0,0.28627968]
[1719494861477,1.51218116,61783.0,61782.0,0.28627968]
[1719494861896,1.18846816,61783.0,61782.0,0.28627968]
[1719494862382,0.95416816,61783.0,61782.0,0.28627968]
[1719494862812,0.63045516,61783.0,61782.0,0.47917968]
[1719494863448,0.92839469,61783.0,61782.0,0.47917968]
[1719494864340,0.92839469,61783.0,61782.0,0.28627968]
[1719494865291,0.98967201,61783.0,61782.0,0.28627968]
[1719494867662,0.98967201,61783.0,61782.0,0.26659368]
[1719494868160,1.31338501,61783.0,61782.0,0.000924]
[1719494868381,1.87663699,61783.0,61782.0,0.000924]
[1719494868844,2.20034999,61783.0,61782.0,0.000924]
[1719494869062,1.87663699,61783.0,61782.0,0.18536447]
[1719494869308,1.66479701,61783.0,61782.0,0.18536447]
[1719494869523,0.98967201,61783.0,61782.0,0.18536447]
[1719494869756,0.98967201,61783.0,61782.0,0.20505047]
[1719494870041,1.31338501,61783.0,61782.0,0.20474347]
[1719494870300,1.31338501,61783.0,61782.0,0.18505747]
[1719494871495,1.31338501,61783.0,61782.0,0.000617]
[1719494871987,1.31369901,61783.0,61782.0,0.000617]
[1719494872214,1.31369901,61783.0,61772.0,0.26117449]
[1719494872215,0.000314,61779.0,61773.0,0.18444047]
[1719494872443,0.000314,61779.0,61768.0,0.17987103]
[1719494872444,1.322142,61775.0,61768.0,0.18444047]
[1719494872690,0.809467,61769.0,61768.0,0.18444047]
[1719494872950,0.909467,61769.0,61768.0,0.18444047]
[1719494873172,0.909467,61769.0,61765.0,0.26574393]
[1719494873399,0.809505,61766.0,61765.0,0.08130346]
[1719494873620,0.909505,61766.0,61765.0,0.08130346]
[1719494873869,0.909505,61766.0,61765.0,0.26574393]
[1719494874092,0.909505,61766.0,61765.0,0.28542993]
[1719494875521,1.233307,61766.0,61765.0,0.08130346]
[1719494875754,1.233307,61766.0,61765.0,0.26774393]
[1719494875755,1.235307,61766.0,61765.0,0.26774393]
[1719494877550,1.234307,61766.0,61765.0,0.26774393]
[1719494878011,1.234307,61766.0,61765.0,0.26574393]
[1719494878216,1.234307,61766.0,61765.0,0.08130346]
[1719494878421,1.233307,61766.0,61765.0,0.08130346]
[1719494878846,1.234307,61766.0,61765.0,0.08130346]
[1719494879933,1.234307,61766.0,61765.0,0.08099646]
[1719494880589,2.72682498,61766.0,61765.0,0.08099646]
[1719494880801,0.323834,61760.0,61752.0,0.26117449]
[1719494881012,0.809585,61760.0,61759.0,0.08130346]
[1719494881230,1.557253,61760.0,61759.0,0.08130346]
[1719494881447,1.856003,61760.0,61759.0,0.08130346]
[1719494881692,1.953343,61760.0,61759.0,0.08130346]
[1719494881898,1.953343,61760.0,61754.0,0.00924]
[1719494881899,1.13351,61755.0,61754.0,0.00924]
[1719494882116,1.7853,61755.0,61754.0,0.00924]
[1719494882338,1.8853,61755.0,61754.0,0.00924]
[1719494882777,2.074714,61755.0,61754.0,0.00924]
[1719494883000,2.0744,61755.0,61754.0,0.00924]
[1719494883856,2.23705298,61755.0,61754.0,0.00924]
[1719494884107,2.56091298,61755.0,61754.0,0.00924]
[1719494884375,2.56091298,61755.0,61748.0,0.09360186]
[1719494884376,1.57529197,61749.0,61748.0,0.0122984]
[1719494884596,0.907409,61747.0,61739.0,0.26574393]
[1719494884850,0.907409,61747.0,61737.0,0.019686]
[1719494884851,2.58838295,61747.0,61737.0,0.18444047]
[1719494885086,2.58838295,61747.0,61725.0,0.01]
[1719494885087,2.58838295,61747.0,61720.0,1.28117535]
[1719494885088,0.18214797,61721.0,61720.0,1.28117535]
[1719494885312,1.94635397,61721.0,61720.0,1.02181392]
[1719494885528,2.43958625,61721.0,61720.0,0.86762284]
[1719494885758,3.07670525,61721.0,61720.0,0.86762284]
[1719494885979,3.11323074,61721.0,61720.0,0.86762284]
[1719494886200,3.32654495,61721.0,61720.0,0.86762284]
[1719494886415,3.61724185,61721.0,61720.0,0.86762284]
[1719494886631,3.21254185,61721.0,61720.0,0.86762284]
[1719494886866,2.64506088,61721.0,61720.0,0.86762284]
[1719494887098,1.74430698,61721.0,61720.0,0.86762284]
[1719494887316,1.47974819,61721.0,61720.0,0.86762284]
[1719494887994,1.00811019,61721.0,61720.0,0.86762284]
[1719494888446,1.00811019,61721.0,61720.0,1.05206331]
[1719494888447,1.33214819,61721.0,61720.0,1.05206331]
[1719494888659,1.34614819,61721.0,61720.0,1.05206331]
[1719494888865,1.02211019,61721.0,61720.0,1.05206331]
[1719494889296,1.33214819,61721.0,61720.0,1.05206331]
[1719494889536,0.28743321,61721.0,61720.0,1.07174931]
[1719494889762,0.31243321,61721.0,61720.0,1.07174931]
[1719494889998,0.63647121,61721.0,61720.0,1.05175645]
[1719494890212,0.63647121,61721.0,61720.0,1.07144245]
[1719494890427,0.31243321,61721.0,61720.0,0.86731598]
[1719494890645,0.31243321,61721.0,61720.0,1.07144245]
[1719494890646,0.15041421,61721.0,61720.0,1.07144245]
[1719494890889,0.15041421,61721.0,61720.0,1.25131348]
[1719494891099,0.05041421,61721.0,61720.0,1.25131348]
[1719494891305,0.03941421,61721.0,61720.0,1.25131348]
[1719494891725,0.05041421,61721.0,61720.0,1.04718701]
[1719494891962,0.025,61721.0,61720.0,1.04718701]
[1719494892167,0.558177,61752.0,61720.0,1.04718701]
[1719494892168,0.02540722,61738.0,61734.0,0.17987103]
[1719494892374,0.2344,61750.0,61734.0,0.17987103]
[1719494892375,0.48782074,61737.0,61734.0,0.17987103]
[1719494892592,0.161964,61742.0,61734.0,0.17987103]
[1719494892826,0.02540403,61738.0,61737.0,0.3839975]
[1719494895277,0.03940403,61738.0,61737.0,0.3839975]
[1719494895714,0.02540403,61738.0,61737.0,0.3839975]
[1719494895944,0.67366601,61738.0,61737.0,0.18444047]
[1719494896174,0.67366601,61738.0,61737.0,0.18744047]
[1719494896405,1.09761501,61738.0,61737.0,0.18744047]
[1719494897301,1.16252501,61738.0,61737.0,0.18744047]
[1719494899064,1.16252501,61738.0,61737.0,0.18444047]
[1719494899328,0.35228803,61738.0,61737.0,0.20412647]
[1719494899547,0.67623703,61738.0,61737.0,0.20512647]
[1719494899793,0.19031403,61738.0,61737.0,0.3849975]
[1719494900000,0.09031403,61738.0,61737.0,0.6195905]
[1719494900211,0.02540403,61738.0,61737.0,0.6095905]
[1719494901059,0.18737803,61738.0,61737.0,0.6095905]
[1719494901296,0.12540403,61738.0,61737.0,0.6095905]
[1719494901516,0.12540403,61738.0,61737.0,0.18513347]
[1719494901517,0.61132703,61738.0,61737.0,0.18513347]
[1719494901729,1.64922501,61738.0,61737.0,0.000693]
[1719494902416,2.31421401,61738.0,61737.0,0.000693]
[1719494902626,2.31421401,61738.0,61725.0,0.17987103]
[1719494902627,0.80999,61729.0,61728.0,0.18326677]
[1719494902822,0.90999,61729.0,61728.0,0.20295277]
[1719494903081,0.90999,61729.0,61728.0,0.18326677]
[1719494903303,1.233986,61729.0,61728.0,0.18326677]
[1719494904038,1.233986,61729.0,61726.0,0.08130346]
[1719494904039,0.162003,61727.0,61726.0,0.08130346]
[1719494904264,0.162003,61727.0,61719.0,0.10098946]
[1719494904265,0.810095,61721.0,61719.0,0.08130346]
[1719494904503,1.50730398,61721.0,61719.0,0.08130346]
[1719494904717,1.60730398,61721.0,61719.0,0.08130346]
[1719494905106,1.93134198,61721.0,61719.0,0.08130346]
[1719494905506,1.74009998,61721.0,61720.0,1.05058275]
[1719494905702,1.54569998,61721.0,61720.0,1.05058275]
[1719494906117,1.39647198,61721.0,61720.0,1.07026875]
[1719494906365,1.55269998,61721.0,61720.0,1.05158275]
[1719494906548,0.377856,61721.0,61720.0,1.07126875]
[1719494906746,0.593057,61721.0,61720.0,1.07126875]
[1719494906949,0.736813,61721.0,61720.0,1.07026875]
[1719494907172,1.060851,61721.0,61720.0,1.07026875]
[1719494907375,1.060851,61721.0,61720.0,1.05058275]
[1719494908927,1.062851,61721.0,61720.0,1.05058275]
[1719494909336,1.067851,61721.0,61720.0,1.05058275]
[1719494909633,0.593057,61721.0,61720.0,1.07026875]
[1719494910042,0.743813,61721.0,61720.0,1.06996189]
[1719494910421,0.743813,61721.0,61720.0,1.05027589]
[1719494910422,1.32752998,61721.0,61720.0,1.05027589]
[1719494910853,2.05308198,61721.0,61720.0,0.86700912]
[1719494911052,2.39724895,61721.0,61720.0,0.77149155]
[1719494911256,2.42024895,61721.0,61720.0,0.77149155]
[1719494911838,2.41993495,61721.0,61720.0,0.77149155]
[1719494912253,2.41993495,61721.0,61720.0,0.53270995]
[1719494912254,2.62024895,61721.0,61720.0,0.53270995]
[1719494912463,2.80738218,61721.0,61720.0,0.41235095]
[1719494912665,2.66365492,61721.0,61720.0,0.28843789]
[1719494912895,7.27774634,61721.0,61720.0,0.12233589]
[1719494913116,7.42210855,61721.0,61720.0,0.12233589]
[1719494913739,7.19058155,61721.0,61720.0,0.12233589]
[1719494914009,7.18558155,61721.0,61720.0,0.12233589]
[1719494914241,7.18358155,61721.0,61720.0,0.12333589]
[1719494914447,0.27984697,61704.0,61703.0,0.009251]
[1719494914660,2.08018395,61704.0,61703.0,0.009251]
[1719494914868,3.15256795,61704.0,61703.0,0.009251]
[1719494915088,3.17556795,61704.0,61703.0,0.009251]
[1719494915547,2.84728095,61704.0,61703.0,0.009251]
[1719494916369,2.82216695,61704.0,61703.0,0.009251]
[1719494916800,3.51669495,61704.0,61703.0,0.009251]
[1719494917023,0.27986197,61698.0,61692.0,0.009251]
[1719494917239,3.14176595,61698.0,61692.0,0.009251]
[1719494917450,3.1938557,61698.0,61692.0,0.009251]
[1719494919224,3.35618941,61698.0,61692.0,0.009251]
[1719494919423,3.60809723,61698.0,61692.0,0.009251]
[1719494919635,3.52456352,61698.0,61697.0,0.08230346]
[1719494919843,3.69556352,61698.0,61697.0,0.08230346]
[1719494920045,4.01972252,61698.0,61697.0,0.001]
[1719494920245,4.01972252,61698.0,61692.0,0.009251]
[1719494920246,1.25242997,61693.0,61692.0,0.009251]
[1719494920540,1.61131927,61693.0,61692.0,0.009251]
[1719494920776,2.59779248,61693.0,61692.0,0.009251]
[1719494920987,2.86747145,61693.0,61692.0,0.009251]
[1719494921188,1.26112836,61691.0,61690.0,10.0]
[1719494921414,3.37208877,61691.0,61690.0,10.0]
[1719494921623,3.69550559,61691.0,61690.0,10.0]
[1719494921825,3.98510158,61691.0,61690.0,10.0]
[1719494922034,3.38727858,61691.0,61690.0,10.0]
[1719494922808,3.39227858,61691.0,61690.0,10.001]
[1719494923245,3.38727858,61691.0,61690.0,10.0]
[1719494923664,3.38727858,61691.0,61690.0,9.98386005]
[1719494923870,1.84226476,61691.0,61690.0,9.98386005]
[1719494924080,1.87745358,61691.0,61690.0,9.98386005]
[1719494924301,1.82574933,61691.0,61690.0,9.98486005]
[1719494924527,2.54993533,61691.0,61690.0,9.98486005]
[1719494924732,2.44202633,61691.0,61690.0,9.98936097]
[1719494924937,2.44234033,61691.0,61690.0,9.98936097]
[1719494925373,3.62553633,61691.0,61690.0,9.78089095]
[1719494925578,3.62553633,61691.0,61690.0,9.73062566]
[1719494925579,3.65473776,61691.0,61690.0,9.73062566]
[1719494926055,2.68654033,61691.0,61690.0,9.73062566]
[1719494926754,2.68654033,61691.0,61690.0,9.57532566]
[1719494928510,2.11817094,61691.0,61690.0,9.57532566]
[1719494928726,1.77903994,61691.0,61690.0,9.57532566]
[1719494929149,1.66669394,61691.0,61690.0,9.57532566]
[1719494930434,1.69382256,61691.0,61690.0,9.57624966]
[1719494930661,1.69382256,61691.0,61690.0,9.57524966]
[1719494930662,1.68482256,61691.0,61690.0,9.57524966]
[1719494930887,1.67782256,61691.0,61690.0,9.57524966]
[1719494931127,1.71374409,61691.0,61690.0,9.57624966]
[1719494933431,1.70774409,61691.0,61690.0,9.57524966]
[1719494933907,1.71474409,61691.0,61690.0,9.57624966]
[1719494934368,1.70774409,61691.0,61690.0,9.57524966]
[1719494934848,1.71274409,61691.0,61690.0,9.57624966]
[1719494935076,2.4347878,61691.0,61690.0,9.57624966]
[1719494935295,2.29514009,61691.0,61690.0,9.48388578]
[1719494935537,2.13065409,61691.0,61690.0,9.48388578]
[1719494935809,3.76820009,61691.0,61690.0,9.48288578]
[1719494936711,3.77420009,61691.0,61690.0,9.48288578]
[1719494936925,3.72171309,61691.0,61690.0,9.48188578]
[1719494937132,3.72671309,61691.0,61690.0,9.48288578]
[1719494937349,3.73571309,61691.0,61690.0,9.48388578]
[1719494937820,3.71239909,61691.0,61690.0,9.48388578]
[1719494938036,2.54565709,61691.0,61690.0,9.48288578]
[1719494938451,2.55465709,61691.0,61690.0,9.48388578]
[1719494939943,2.54565709,61691.0,61690.0,9.48288578]
[1719494940368,1.89726509,61691.0,61690.0,9.66615255]
[1719494940577,1.41713909,61691.0,61690.0,9.66715255]
[1719494940990,1.74133509,61691.0,61690.0,9.66715255]
[1719494941428,1.41713909,61691.0,61690.0,9.68683855]
[1719494941646,0.32267711,61691.0,61690.0,10.11553855]
[1719494942115,0.14792153,61691.0,61690.0,10.11553855]
[1719494942340,0.04792153,61691.0,61690.0,10.11553855]
[1719494942566,0.14792153,61691.0,61690.0,10.12553855]
[1719494942781,0.14792153,61691.0,61690.0,10.32553855]
[1719494943494,0.122,61691.0,61690.0,10.32553855]
[1719494943706,0.022,61691.0,61690.0,10.32553855]
[1719494944629,0.013,61691.0,61690.0,10.32453855]
[1719494944839,0.0264425,61697.0,61696.0,0.83445277]
[1719494945047,0.0264425,61697.0,61696.0,0.84178089]
[1719494945261,0.16208,61698.0,61697.0,0.20295277]
[1719494945469,0.26208,61698.0,61697.0,0.20295277]
[1719494945699,0.26208,61698.0,61697.0,0.21027558]
[1719494946546,0.26208,61698.0,61697.0,0.21327558]
[1719494947431,0.26208,61698.0,61697.0,0.21027558]
[1719494948417,0.586239,61698.0,61697.0,0.21027558]
[1719494949337,0.26308,61698.0,61697.0,0.21627558]
[1719494949806,0.26208,61698.0,61697.0,0.21027558]
[1719494950013,0.1,61698.0,61697.0,0.21027558]
[1719494950231,0.101,61698.0,61697.0,0.22927558]
[1719494950447,0.001,61698.0,61697.0,0.42927558]
[1719494950887,0.001,61698.0,61697.0,0.87007558]
[1719494951588,0.001,61698.0,61697.0,0.87407558]
[1719494952014,0.00084,61700.0,61697.0,0.87407558]
[1719494952015,0.00084,61700.0,61699.0,0.019686]
[1719494952198,0.00084,61700.0,61699.0,0.41295277]
[1719494952438,0.00084,61700.0,61699.0,0.41020646]
[1719494952663,0.154804,61704.0,61703.0,0.40233913]
[1719494952906,0.324114,61707.0,61700.0,0.20295277]
[1719494952907,0.162071,61701.0,61700.0,0.20295277]
[1719494953142,0.810357,61701.0,61700.0,0.20295277]
[1719494954021,0.486214,61701.0,61700.0,0.20295277]
[1719494954237,0.162071,61701.0,61700.0,0.20295277]
[1719494954694,0.162071,61701.0,61699.0,0.003]
[1719494954695,0.486223,61700.0,61699.0,0.003]
[1719494954923,1.64730698,61700.0,61699.0,0.003]
[1719494955368,0.329261,61700.0,61699.0,0.18626677]
[1719494955594,0.09036488,61704.0,61699.0,0.18626677]
[1719494955815,0.30993898,61703.0,61702.0,0.08130346]
[1719494956049,0.1476,61703.0,61702.0,0.26457023]
[1719494956302,0.2476,61703.0,61702.0,0.28425623]
[1719494957652,0.50759298,61703.0,61699.0,0.18626677]
[1719494957868,0.09734,61701.0,61699.0,0.08430346]
[1719494958098,0.82758798,61702.0,61699.0,0.26457023]
[1719494958099,0.25967898,61700.0,61699.0,0.26457023]
[1719494958554,0.96392498,61700.0,61691.0,0.08130346]
[1719494958774,0.000314,61696.0,61691.0,0.08130346]
[1719494959018,0.93354098,61695.0,61691.0,0.08130346]
[1719494959235,0.562116,61694.0,61691.0,0.08130346]
[1719494959446,0.72540498,61693.0,61691.0,0.08130346]
[1719494959662,0.326262,61692.0,61691.0,0.08130346]
[1719494959884,0.189132,61692.0,61691.0,0.08130346]
[1719494960115,0.1,61692.0,61691.0,0.08130346]
[1719494960343,0.1,61692.0,61691.0,0.08330346]
[1719494960977,0.1,61692.0,61691.0,0.08130346]
[1719494961203,0.101,61692.0,61691.0,0.08830346]
[1719494962150,0.101,61692.0,61691.0,0.07870828]
[1719494964567,0.22235184,61692.0,61691.0,0.28166105]
[1719494964778,0.12235184,61692.0,61691.0,0.28166105]
[1719494965035,0.12235207,61692.0,61691.0,0.28166105]
[1719494965276,0.001,61692.0,61691.0,0.07870828]
[1719494965702,0.12235207,61692.0,61691.0,0.07870828]
[1719494965928,0.12235207,61692.0,61691.0,0.08602535]
[1719494967675,0.12236405,61692.0,61691.0,0.08602535]
[1719494968115,0.22236405,61692.0,61691.0,0.08602535]
[1719494968329,0.38501703,61692.0,61691.0,0.08602535]
[1719494968552,0.26365298,61692.0,61691.0,0.08602535]
[1719494968770,0.26333898,61692.0,61691.0,0.08602535]
[1719494968987,1.85669402,61692.0,61691.0,0.08602535]
[1719494969201,1.85638002,61692.0,61691.0,0.08602535]
[1719494969428,1.43616002,61692.0,61691.0,0.08602535]
[1719494969680,1.38008402,61692.0,61691.0,0.08602535]
[1719494970121,1.42363802,61692.0,61691.0,0.01431707]
[1719494970547,1.42363802,61692.0,61690.0,9.47458053]
[1719494970548,0.000314,61691.0,61690.0,9.47458053]
[1719494970763,3.16083898,61691.0,61690.0,9.47458053]
[1719494970973,3.32472466,61691.0,61690.0,9.46489775]
[1719494971182,3.57472466,61691.0,61690.0,9.46489775]
[1719494971388,3.6067903,61691.0,61690.0,9.26822775]
[1719494971602,3.7522953,61691.0,61690.0,9.23622775]
[1719494971886,3.58840962,61691.0,61690.0,9.23622775]
[1719494972103,1.38640798,61691.0,61690.0,9.23622775]
[1719494972321,0.61826998,61691.0,61690.0,9.23622775]
[1719494972537,0.76392128,61691.0,61690.0,9.23622775]
[1719494973411,0.61826998,61691.0,61690.0,9.23622775]
[1719494973617,0.76392128,61691.0,61690.0,9.23622775]
[1719494973827,0.61826998,61691.0,61690.0,9.23622775]
[1719494974675,0.63226998,61691.0,61690.0,9.23622775]
[1719494975092,0.77792836,61691.0,61690.0,9.23622775]
[1719494975304,0.76424236,61691.0,61690.0,9.23622775]
[1719494975526,0.63258398,61691.0,61690.0,9.23622775]
[1719494975731,0.77824598,61691.0,61690.0,9.23722775]
[1719494975942,0.79224598,61691.0,61690.0,9.23722775]
[1719494976165,0.86778398,61691.0,61690.0,9.23722775]
[1719494976580,0.90301195,61691.0,61690.0,9.23622775]
[1719494976802,0.86739762,61691.0,61690.0,9.23622775]
[1719494977217,1.05513085,61691.0,61690.0,8.98699775]
[1719494977424,1.67285903,61691.0,61690.0,8.98699775]
[1719494977633,1.6561258,61691.0,61690.0,8.98699775]
[1719494977849,1.50899036,61691.0,61690.0,8.70716775]
[1719494978112,1.50899036,61691.0,61690.0,8.68229975]
[1719494978113,2.03519274,61691.0,61690.0,8.68229975]
[1719494978315,1.71284324,61691.0,61690.0,8.63029975]
[1719494978732,1.72684324,61691.0,61690.0,8.61029975]
[1719494978943,1.72684324,61691.0,61690.0,8.56104775]
[1719494979601,1.72684324,61691.0,61690.0,8.5495374]
[1719494980012,1.74084324,61691.0,61690.0,8.5505374]
[1719494980247,1.7408443,61691.0,61690.0,8.5368074]
[1719494980671,1.7408443,61691.0,61690.0,8.4388074]
[1719494980672,1.71011107,61691.0,61690.0,8.4388074]
[1719494980876,1.7268443,61691.0,61690.0,8.41341827]
[1719494981296,1.7408443,61691.0,61690.0,8.41441827]
[1719494981518,1.90461218,61691.0,61690.0,8.41441827]
[1719494981717,1.90461162,61691.0,61690.0,8.41441827]
[1719494982351,1.90461162,61691.0,61690.0,8.40534827]
[1719494982554,1.88787839,61691.0,61690.0,8.38228827]
[1719494982760,1.90461162,61691.0,61690.0,8.38228827]
[1719494983373,1.90460205,61691.0,61690.0,8.38228827]
[1719494983598,1.71686882,61691.0,61690.0,8.33460827]
[1719494983806,1.55311031,61691.0,61690.0,8.33460827]
[1719494984042,1.55311031,61691.0,61690.0,8.28830827]
[1719494984871,1.55311022,61691.0,61690.0,8.28830827]
[1719494985075,1.56984345,61691.0,61690.0,8.27430827]
[1719494986440,1.56984339,61691.0,61690.0,8.27430827]
[1719494987188,1.5697424,61691.0,61690.0,8.27430827]
[1719494987777,1.37250339,61691.0,61690.0,8.27430827]
[1719494988146,1.46984339,61691.0,61690.0,8.27430827]
[1719494988278,1.45311016,61691.0,61690.0,8.27430827]
[1719494989071,0.57109652,61691.0,61690.0,8.27430827]
[1719494989296,0.77097672,61691.0,61690.0,8.27430827]
[1719494989747,0.57109609,61691.0,61690.0,8.27430827]
[1719494989955,0.67109609,61691.0,61690.0,8.27430827]
[1719494990689,0.81658713,61691.0,61690.0,8.27430827]
[1719494990921,0.80861362,61691.0,61690.0,8.27024445]
[1719494991127,0.78488698,61691.0,61690.0,8.27024445]
[1719494992178,0.78457298,61691.0,61690.0,8.27024445]
[1719494992382,0.81031321,61691.0,61690.0,8.27024445]
[1719494992598,1.12109821,61691.0,61690.0,8.27024445]
[1719494994065,0.82412908,61691.0,61690.0,8.27024445]
[1719494994275,0.80305001,61691.0,61690.0,8.27024445]
[1719494994829,0.80389001,61691.0,61690.0,8.27024445]
[1719494995090,0.96622899,61691.0,61690.0,8.27024445]
[1719494995837,0.9830817,61691.0,61690.0,8.27024445]
[1719494996038,0.9830817,61691.0,61690.0,8.26523169]
[1719494996252,0.9830817,61691.0,61690.0,8.23224169]
[1719494996253,1.53366857,61691.0,61690.0,8.23224169]
[1719494996477,1.53366857,61691.0,61690.0,8.21816169]
[1719494996927,1.69744238,61691.0,61690.0,8.21816169]
[1719494997195,1.7395759,61691.0,61690.0,8.21816169]
[1719494997397,1.57580209,61691.0,61690.0,8.21816169]
[1719494998586,1.55894938,61691.0,61690.0,8.21816169]
[1719494998957,1.54221615,61691.0,61690.0,8.21816169]
[1719494999390,1.10631615,61691.0,61690.0,8.16316169]
[1719494999591,1.06418263,61691.0,61690.0,8.16316169]
[1719494999995,1.08091586,61691.0,61690.0,8.16316169]
[1719495000211,1.08091586,61691.0,61690.0,8.15085118]
[1719495000452,1.86904957,61691.0,61690.0,7.10699373]
[1719495000653,2.21267613,61691.0,61690.0,6.48065616]
[1719495000972,2.16324015,61691.0,61690.0,6.2831636]
[1719495001205,2.16324015,61691.0,61690.0,6.24480283]
[1719495001349,2.36268925,61691.0,61690.0,6.24073956]
[1719495001552,2.36268925,61691.0,61690.0,6.18811956]
[1719495001814,2.36268914,61691.0,61690.0,6.18405635]
[1719495002139,2.36268914,61691.0,61690.0,6.17999314]
[1719495002335,3.06268914,61691.0,61690.0,6.17099314]
[1719495002554,2.40150709,61691.0,61690.0,6.17099314]
[1719495002774,1.78797386,61691.0,61690.0,6.17099314]
[1719495002989,1.08797386,61691.0,61690.0,6.17099314]
[1719495003217,1.1929141,61691.0,61690.0,6.17099314]
[1719495003526,1.1929141,61691.0,61690.0,6.17199314]
[1719495003527,0.7344351,61691.0,61690.0,6.17199314]
[1719495003709,0.55131892,61691.0,61690.0,6.17199314]
[1719495003916,1.3248712,61691.0,61690.0,6.17099314]
[1719495004119,1.34690826,61691.0,61690.0,6.16999314]
[1719495004388,1.36090838,61691.0,61690.0,6.17099314]
[1719495004621,1.21704061,61691.0,61690.0,6.17199314]
[1719495004913,1.21642697,61691.0,61690.0,6.17199314]
[1719495005149,0.82501697,61691.0,61690.0,6.17099314]
[1719495005376,1.06356384,61691.0,61690.0,6.16999314]
[1719495005614,0.81101697,61691.0,61690.0,6.16999314]
[1719495005857,0.55545174,61691.0,61690.0,6.17099314]
[1719495006105,0.29575776,61691.0,61690.0,6.63459314]
[1719495006330,0.12706376,61691.0,61690.0,6.63459314]
[1719495006570,0.34591298,61691.0,61690.0,6.63459314]
[1719495006992,0.32612698,61691.0,61690.0,6.63459314]
[1719495007352,0.30927423,61691.0,61690.0,6.63459314]
[1719495007829,0.30896023,61691.0,61690.0,6.63459314]
[1719495008092,0.30896023,61691.0,61690.0,6.81885991]
[1719495008093,0.29905321,61691.0,61690.0,6.81885991]
[1719495008335,0.29905321,61691.0,61690.0,6.81785991]
[1719495008336,0.13926623,61691.0,61690.0,6.81785991]
[1719495008581,0.02626623,61691.0,61690.0,6.63359314]
[1719495008820,0.30215423,61691.0,61690.0,6.63359314]
[1719495009086,0.41515423,61691.0,61690.0,6.63459314]
[1719495009592,0.35485423,61691.0,61690.0,6.83854591]
[1719495009833,0.15326623,61691.0,61690.0,6.81885991]
[1719495010086,0.15326623,61691.0,61690.0,6.61459314]
[1719495010087,0.05326623,61691.0,61690.0,6.61459314]
[1719495010321,0.03926623,61691.0,61690.0,6.61459314]
[1719495010802,0.30116623,61691.0,61690.0,6.61459314]
[1719495011036,0.28686623,61691.0,61690.0,6.61459314]
[1719495011273,0.12626623,61691.0,61690.0,6.8129795]
[1719495011523,0.12626623,61691.0,61690.0,7.01593227]
[1719495011746,0.13826623,61691.0,61690.0,7.01693227]
[1719495012479,0.12626623,61691.0,61690.0,7.01593227]
[1719495012742,0.12232311,61698.0,61697.0,0.40233913]
[1719495013019,0.12232311,61698.0,61697.0,1.06127811]
[1719495013020,0.00084,61698.0,61697.0,1.06127811]
[1719495013266,0.00084,61698.0,61697.0,1.05127811]
[1719495013518,0.00084,61698.0,61697.0,1.04317811]
[1719495013766,0.01431,61704.0,61703.0,0.19485277]
[1719495014007,0.01431,61704.0,61703.0,0.64485277]
[1719495014243,0.1,61707.0,61703.0,0.64485277]
[1719495014244,0.12143958,61708.0,61707.0,0.19485277]
[1719495014523,0.1862767,61709.0,61708.0,0.18326677]
[1719495014821,0.064942,61709.0,61708.0,0.18326677]
[1719495015069,0.426376,61709.0,61708.0,0.18326677]
[1719495015307,0.064942,61709.0,61708.0,0.85423913]
[1719495015550,0.1,61709.0,61708.0,0.85423913]
[1719495015827,0.1213347,61720.0,61719.0,0.64326677]
[1719495016061,0.12125413,61723.0,61720.0,0.18326677]
[1719495016362,0.02598887,61729.0,61722.0,0.27615623]
[1719495016567,0.22177611,61728.0,61723.0,0.18326677]
[1719495016803,0.100532,61727.0,61724.0,0.18326677]
[1719495017034,0.100532,61727.0,61725.0,0.18326677]
[1719495017274,0.1,61726.0,61724.0,0.18326677]
[1719495017553,0.156516,61725.0,61724.0,0.18326677]
[1719495017772,0.238864,61727.0,61724.0,0.18326677]
[1719495017982,0.239505,61727.0,61724.0,0.18326677]
[1719495018198,0.064927,61728.0,61726.0,0.18326677]
[1719495018434,0.02584666,61734.0,61732.0,0.18326677]
[1719495018645,0.02584666,61734.0,61733.0,0.08130346]
[1719495019272,0.436455,61734.0,61733.0,0.08130346]
[1719495019499,0.167755,61734.0,61733.0,0.27615623]
[1719495019717,0.008414,61740.0,61736.0,0.18326677]
[1719495019933,0.158309,61739.0,61738.0,0.19485277]
[1719495020178,0.29795364,61750.0,61740.0,0.18326677]
[1719495020179,0.008414,61748.0,61740.0,0.18326677]
[1719495020399,0.41020398,61747.0,61745.0,0.08130346]
[1719495020636,0.34785,61746.0,61745.0,0.08130346]